Workbook

Sheet MENU PRINCIPAL

Sheet DASHBOARD

Sheet CONSUMO DE COMBUSTIVEL
A7: DATA DO ABASTECIMENTO | B7: VALOR ABASTECIDO | C7: TIPO DE COMBUSTIVEL | D7: R$ POR LITRO | E7: KM INICIAL | F7: KM FINAL | G7: LITROS ABASTECIDO | H7: KM RODADO | I7: MÊS | N7: GASOLINA
A8: 44197 | B8: 100 | C8: ETANOL | D8: 5 | E8: 100 | F8: 200 | G8: =IFERROR($B8/$D8,"") -> 20 | H8: =IF(F8-E8=0,"",F8-E8) -> 100 | I8: =IF(BASE[[#This Row],[DATA DO ABASTECIMENTO]]="","",UPPER(TEXT($A8,"MMM"))) -> JAN | N8: ETANOL
A9: 44198 | B9: 400 | C9: GASOLINA | D9: 10 | E9: 205 | F9: 305 | G9: 40 | H9: 100 | I9: =IF(BASE[[#This Row],[DATA DO ABASTECIMENTO]]="","",UPPER(TEXT($A9,"MMM"))) -> JAN
A10: 44199 | B10: 300 | C10: GASOLINA | D10: 2.5 | E10: 400 | F10: 500 | G10: 120 | H10: 100 | I10: =IF(BASE[[#This Row],[DATA DO ABASTECIMENTO]]="","",UPPER(TEXT($A10,"MMM"))) -> JAN
A11: 44231 | B11: 200 | C11: ETANOL | D11: 5 | E11: 100 | F11: 200 | G11: 40 | H11: 100 | I11: =IF(BASE[[#This Row],[DATA DO ABASTECIMENTO]]="","",UPPER(TEXT($A11,"MMM"))) -> FEV
A12: 44237 | B12: 200 | C12: GASOLINA | D12: 3.5 | E12: 200 | F12: 300 | G12: 57.14285714 | H12: 100 | I12: =IF(BASE[[#This Row],[DATA DO ABASTECIMENTO]]="","",UPPER(TEXT($A12,"MMM"))) -> FEV
A13: 44256 | B13: 100 | C13: GASOLINA | D13: 3.5 | E13: 500 | F13: 650 | G13: =IFERROR($B13/$D13,"") -> 28.57142857 | H13: =IF(F13-E13=0,"",F13-E13) -> 150 | I13: =IF(BASE[[#This Row],[DATA DO ABASTECIMENTO]]="","",UPPER(TEXT($A13,"MMM"))) -> MAR
A14: 44275 | B14: 15 | C14: ETANOL | D14: 2.55 | E14: 700 | F14: 800 | G14: =IFERROR($B14/$D14,"") -> 5.882352941 | H14: =IF(F14-E14=0,"",F14-E14) -> 100 | I14: =IF(BASE[[#This Row],[DATA DO ABASTECIMENTO]]="","",UPPER(TEXT($A14,"MMM"))) -> MAR

Sheet DINÂMICAS
B8: FILTRO | E8: ANÁLISE DE FATURAMENTO E CONSUMO | W8: VALOR GASTO MENSAL
B10: Rótulos de Linha | E10: Soma de VALOR ABASTECIDO | G10: Soma de LITROS ABASTECIDO | I10: Soma de KM RODADO | K10: Média RS por Litro | M10: Média km/ por litro | P10: Rótulos de Linha | Q10: Soma de LITROS ABASTECIDO | X10: Rótulos de Coluna
B11: JAN | E11: 800 | G11: 180 | I11: 300 | K11: =IFERROR(GETPIVOTDATA("VALOR ABASTECIDO",$E$10)/GETPIVOTDATA("LITROS ABASTECIDO",$G$10),"") -> 4.444444444 | M11: =IFERROR(GETPIVOTDATA("KM RODADO",$I$10)/GETPIVOTDATA("LITROS ABASTECIDO",$G$10),"") -> 1.666666667 | P11: ETANOL | Q11: 0.1111111111 | X11: JAN | Y11: FEV | Z11: MAR
P12: GASOLINA | Q12: 0.8888888889 | W12: Soma de VALOR ABASTECIDO | X12: 800 | Y12: 400 | Z12: 115
E13: =IF(GETPIVOTDATA("VALOR ABASTECIDO",$E$10)=0,"",GETPIVOTDATA("VALOR ABASTECIDO",$E$10)) -> 800 | G13: =IF(GETPIVOTDATA("LITROS ABASTECIDO",$G$10)=0,"",GETPIVOTDATA("LITROS ABASTECIDO",$G$10)) -> 180 | I13: =IF(GETPIVOTDATA("KM RODADO",$I$10)=0,"",GETPIVOTDATA("KM RODADO",$I$10)) -> 300 | K13: =IF(K11=0,"",K11) -> 4.444444444 | M13: =IF(M11=0,"",M11) -> 1.666666667 | P13: Total Geral | Q13: 1
X15: =X11 -> JAN | Y15: =Y11 -> FEV | Z15: =IF(Z11=0,"",Z11) -> MAR | AA15: =IF(AA11=0,"",AA11) -> 
P16: GASOLINA | Q16: =IFERROR(VLOOKUP(P16,P10:Q12,2,0),"") -> 0.8888888889 | R16: =1-Q16 -> 0.1111111111 | X16: =X12 -> 800 | Y16: 400 | Z16: =IF(Z12=0,NA(),Z12) -> 115 | AA16: =IF(AA12=0,NA(),AA12) ->  | AJ16: =IF(AJ12=0,"",AJ12) -> 
P17: ETANOL | Q17: =IFERROR(VLOOKUP(P17,P10:Q12,2,0),"") -> 0.1111111111 | R17: =1-Q17 -> 0.8888888889
X18: =VLOOKUP(X$15,$B$11:$B$23,1,0) -> JAN
X19: =IF(X$18=X$15,X$16+$W$21,NA()) -> 800
